fUST/lending_fUST_20250914
["ID","MTS","AMOUNT","RATE_DAILY","PERIOD"]
[385441590,1757851840595,-480.0,0.00021917,2]
[385441591,1757851840817,-398.43238232,0.00021917,2]
[385441592,1757851840836,-790.19,0.00021917,2]
[385441593,1757851840846,-480.0,0.00021917,2]
[385441594,1757851840856,-480.0,0.00021917,2]
[385441595,1757851840865,-487.07207122,0.00021917,2]
[385441596,1757851840875,-480.0,0.00021917,2]
[385441597,1757851840885,-480.0,0.00021917,2]
[385441598,1757851840894,-246.21616653,0.00021917,2]
[385441599,1757851840904,-480.0,0.00021917,2]
[385441600,1757851840912,-635.81,0.00021917,2]
[385441601,1757851840922,-346.47676145,0.00021917,2]
[385441602,1757851840931,-480.0,0.00021917,2]
[385441603,1757851840940,-480.0,0.00021917,2]
[385441604,1757851840950,-480.0,0.00021917,2]
[385441605,1757851840959,-480.0,0.00021917,2]
[385441606,1757851840968,-480.0,0.00021917,2]
[385441607,1757851840978,-550.1,0.00021917,2]
[385441608,1757851840987,-480.0,0.00021917,2]
[385441609,1757851840996,-480.0,0.00021917,2]
[385441610,1757851841005,-480.0,0.00021917,2]
[385441611,1757851841014,-480.0,0.00021917,2]
[385441612,1757851841023,-480.0,0.00021917,2]
[385441613,1757851841032,-662.11,0.00021917,2]
[385441614,1757851841042,-486.86621769,0.00021917,2]
[385441615,1757851841051,-480.0,0.00021917,2]
[385441616,1757851841060,-486.26986262,0.00021917,2]
[385441617,1757851841069,-480.0,0.00021917,2]
[385441618,1757851841078,-480.0,0.00021917,2]
[385441619,1757851841087,-480.0,0.00021917,2]
[385441620,1757851841096,-610.06466493,0.00021917,2]
[385441621,1757851841105,-480.0,0.00021917,2]
[385441622,1757851841114,-480.0,0.00021917,2]
[385441623,1757851841124,-480.0,0.00021917,2]
[385441624,1757851841133,-193.67201749,0.00021917,2]
[385441625,1757851841142,-788.11,0.00021917,2]
[385441626,1757851841151,-886.65,0.00021917,2]
[385441627,1757851841160,-491.89402871,0.00021917,2]
[385441628,1757851841169,-626.24,0.00021917,2]
[385441629,1757851841179,-480.0,0.00021917,2]
[385441630,1757851841188,-483.54077908,0.00021917,2]
[385441631,1757851841198,-480.0,0.00021917,2]
[385441632,1757851841209,-1479.95,0.00021917,2]
[385441633,1757851841218,-480.0,0.00021917,2]
[385441634,1757851841226,-480.0,0.00021917,2]
[385441635,1757851841235,-480.0,0.00021917,2]
[385441636,1757851841244,-1081.02,0.00021917,2]
[385441637,1757851841253,-519.06,0.00021917,2]
[385441638,1757851841262,-480.0,0.00021917,2]
[385441639,1757851841271,-1000.11,0.00021917,2]
[385441640,1757851841281,-480.0,0.00021917,2]
[385441641,1757851841290,-970.87,0.00021917,2]
[385441642,1757851841299,-480.0,0.00021917,2]
[385441643,1757851841308,-480.0,0.00021917,2]
[385441644,1757851841318,-480.0,0.00021917,2]
[385441645,1757851841327,-480.0,0.00021917,2]
[385441646,1757851841336,-480.0,0.00021917,2]
[385441647,1757851841345,-489.15549395,0.00021917,2]
[385441648,1757851841354,-480.0,0.00021917,2]
[385441649,1757851841363,-480.0,0.00021917,2]
[385441650,1757851841372,-905.01,0.00021917,2]
[385441651,1757851841381,-1260.47,0.00021917,2]
[385441652,1757851841391,-480.0,0.00021917,2]
[385441653,1757851841399,-2705.95,0.00021917,2]
[385441654,1757851841409,-346.81480943,0.00021917,2]
[385441655,1757851841418,-480.0,0.00021917,2]
[385441656,1757851841427,-5580.09,0.00021917,2]
[385441657,1757851841435,-460.80676862,0.00021917,2]
[385441658,1757851841444,-1023.04,0.00021917,2]
[385441659,1757851841453,-480.0,0.00021917,2]
[385441660,1757851841463,-480.0,0.00021917,2]
[385441661,1757851841471,-480.0,0.00021917,2]
[385441662,1757851841480,-480.0,0.00021917,2]
[385441663,1757851841489,-480.0,0.00021917,2]
[385441664,1757851841499,-509.96,0.00021917,2]
[385441665,1757851841508,-480.0,0.00021917,2]
[385441666,1757851841517,-480.0,0.00021917,2]
[385441667,1757851841526,-480.0,0.00021917,2]
[385441668,1757851841535,-480.0,0.00021917,2]
[385441669,1757851841544,-555.34,0.00021917,2]
[385441670,1757851841553,-480.0,0.00021917,2]
[385441671,1757851841562,-480.0,0.00021917,2]
[385441672,1757851841571,-480.0,0.00021917,2]
[385441673,1757851841580,-480.0,0.00021917,2]
[385441674,1757851841589,-480.0,0.00021917,2]
[385441675,1757851841598,-480.0,0.00021917,2]
[385441676,1757851841608,-1405.4,0.00021917,2]
[385441677,1757851841616,-593.73,0.00021917,2]
[385441678,1757851841626,-480.0,0.00021917,2]
[385441679,1757851841635,-3781.54,0.00021917,2]
[385441680,1757851841644,-480.0,0.00021917,2]
[385441681,1757851841654,-728.24,0.00021917,2]
[385441682,1757851841664,-480.0,0.00021917,2]
[385441683,1757851841673,-549.78,0.00021917,2]
[385441684,1757851841683,-480.0,0.00021917,2]
[385441685,1757851841692,-480.0,0.00021917,2]
[385441686,1757851841704,-480.0,0.00021917,2]
[385441687,1757851841713,-357.87,0.00021917,2]
[385441688,1757851841723,-1212.62,0.00021917,2]
[385441689,1757851841732,-753.95,0.00021917,2]
[385441690,1757851841741,-480.0,0.00021917,2]
[385441691,1757851841750,-483.11803653,0.00021917,2]
[385441692,1757851841759,-1132.59,0.00021917,2]
[385441693,1757851841768,-970.76,0.00021917,2]
[385441694,1757851841777,-1392.4,0.00021917,2]
[385441695,1757851841787,-480.0,0.00021917,2]
[385441696,1757851841796,-480.0,0.00021917,2]
[385441697,1757851841805,-834.67,0.00021917,2]
[385441698,1757851841818,-626.22,0.00021917,2]
[385441699,1757851841827,-778.67,0.00021917,2]
[385441700,1757851841837,-480.0,0.00021917,2]
[385441701,1757851841846,-503.68,0.00021917,2]
[385441702,1757851841856,-369.4033403,0.00021917,2]
[385441703,1757851841865,-480.0,0.00021917,2]
[385441704,1757851841874,-2111.35,0.00021917,2]
[385441705,1757851841884,-935.78,0.00021917,2]
[385441706,1757851841893,-766.57,0.00021917,2]
[385441707,1757851841903,-634.66,0.00021917,2]
[385441708,1757851841913,-25678.9,0.00021917,2]
[385441709,1757851841923,-480.0,0.00021917,2]
[385441710,1757851841932,-480.0,0.00021917,2]
[385441711,1757851841941,-6977.48,0.00021917,2]
[385441712,1757851841951,-480.0,0.00021917,2]
[385441713,1757851841960,-484.62812559,0.00021917,2]
[385441714,1757851841970,-480.0,0.00021917,2]
[385441715,1757851841980,-480.0,0.00021917,2]
[385441716,1757851841991,-480.0,0.00021917,2]
[385441717,1757851842000,-1433.83,0.00021917,2]
[385441718,1757851842010,-480.0,0.00021917,2]
[385441719,1757851842019,-480.0,0.00021917,2]
[385441720,1757851842029,-537.75,0.00021917,2]
[385441721,1757851842040,-480.0,0.00021917,2]
[385441722,1757851842051,-3265.71,0.00021917,2]
[385441723,1757851842064,-478.24899379,0.00021917,2]
[385441724,1757851842075,-480.0,0.00021917,2]
[385441725,1757851842084,-1597.56,0.00021917,2]
[385441726,1757851842095,-897.32,0.00021917,2]
[385441727,1757851842108,-480.0,0.00021917,2]
[385441728,1757851842117,-1106.6,0.00021917,2]
[385441729,1757851842127,-480.0,0.00021917,2]
[385441730,1757851842137,-635.37,0.00021917,2]
[385441731,1757851842146,-480.0,0.00021917,2]
[385441732,1757851842155,-1081.55,0.00021917,2]
[385441733,1757851842166,-1513.06,0.00021917,2]
[385441734,1757851842176,-480.0,0.00021917,2]
[385441735,1757851842186,-480.0,0.00021917,2]
[385441736,1757851842195,-480.0,0.00021917,2]
[385441737,1757851842205,-480.0,0.00021917,2]
[385441738,1757851842215,-2835.58,0.00021917,2]
[385441739,1757851842227,-963.72,0.00021917,2]
[385441740,1757851842243,-491.34048243,0.00021917,2]
[385441741,1757851842252,-3100.77,0.00021917,2]
[385441742,1757851842261,-961.36,0.00021917,2]
[385441743,1757851842271,-480.0,0.00021917,2]
[385441744,1757851842279,-786.11,0.00021917,2]
[385441745,1757851842288,-480.0,0.00021917,2]
[385441746,1757851842298,-1000.0,0.00021917,2]
[385441747,1757851842307,-1085.22,0.00021917,2]
[385441748,1757851842316,-1530.3,0.00021917,2]
[385441749,1757851842325,-480.0,0.00021917,2]
[385441750,1757851842334,-480.0,0.00021917,2]
[385441751,1757851842343,-480.0,0.00021917,2]
[385441752,1757851842352,-480.0,0.00021917,2]
[385441753,1757851842362,-805.83,0.00021917,2]
[385441754,1757851842371,-686.24,0.00021917,2]
[385441755,1757851842380,-480.0,0.00021917,2]
[385441756,1757851842389,-480.0,0.00021917,2]
[385441757,1757851842398,-4090.52,0.00021917,2]
[385441758,1757851842408,-2316.74,0.00021917,2]
[385441759,1757851842417,-6955.58,0.00021917,2]
[385441760,1757851842426,-480.0,0.00021917,2]
[385441761,1757851842435,-480.0,0.00021917,2]
[385441762,1757851842444,-480.0,0.00021917,2]
[385441763,1757851842453,-480.0,0.00021917,2]
[385441764,1757851842462,-480.0,0.00021917,2]
[385441765,1757851842471,-480.0,0.00021917,2]
[385441766,1757851842480,-480.0,0.00021917,2]
[385441767,1757851842489,-480.0,0.00021917,2]
[385441768,1757851842498,-480.0,0.00021917,2]
[385441769,1757851842507,-492.13407604,0.00021917,2]
[385441770,1757851842517,-480.0,0.00021917,2]
[385441771,1757851842526,-480.0,0.00021917,2]
[385441772,1757851842535,-480.0,0.00021917,2]
[385441773,1757851842544,-480.0,0.00021917,2]
[385441774,1757851842553,-500.0,0.00021917,2]
[385441775,1757851842562,-2940.46,0.00021917,2]
[385441776,1757851842571,-480.0,0.00021917,2]
[385441777,1757851842580,-480.0,0.00021917,2]
[385441778,1757851842589,-480.0,0.00021917,2]
[385441779,1757851842599,-715.22,0.00021917,2]
[385441780,1757851842608,-694.26,0.00021917,2]
[385441781,1757851842617,-480.0,0.00021917,2]
[385441782,1757851842626,-480.0,0.00021917,2]
[385441783,1757851842635,-480.0,0.00021917,2]
[385441784,1757851842645,-490.46318283,0.00021917,2]
[385441785,1757851842654,-4433.31,0.00021917,2]
[385441786,1757851842663,-480.0,0.00021917,2]
[385441787,1757851842672,-650.22,0.00021917,2]
[385441788,1757851842681,-480.0,0.00021917,2]
[385441789,1757851842690,-648.06,0.00021917,2]
[385441790,1757851842699,-480.0,0.00021917,2]
[385441791,1757851842709,-923.4,0.00021917,2]
[385441792,1757851842718,-1220.4,0.00021917,2]
[385441793,1757851842727,-252.041302,0.00021917,2]
[385441794,1757851842737,-480.0,0.00021917,2]
[385441795,1757851842746,-14908.91,0.00021917,2]
[385441796,1757851842756,-1587.74,0.00021917,2]
[385441797,1757851842766,-480.0,0.00021917,2]
[385441798,1757851842775,-388.12424925,0.00021917,2]
[385441799,1757851842784,-481.60241852,0.00021917,2]
[385441800,1757851842793,-933.79,0.00021917,2]
[385441801,1757851842802,-480.0,0.00021917,2]
[385441802,1757851842815,-480.0,0.00021917,2]
[385441803,1757851842824,-480.0,0.00021917,2]
[385441805,1757851842833,-3237.49,0.00021917,2]
[385441806,1757851842843,-564.4,0.00021917,2]
[385441807,1757851842852,-557.08766036,0.00021917,2]
[385441808,1757851842862,-480.0,0.00021917,2]
[385441809,1757851842871,-480.0,0.00021917,2]
[385441810,1757851842881,-1966.92,0.00021917,2]
[385441811,1757851842891,-1057.96,0.00021917,2]
[385441812,1757851842900,-480.0,0.00021917,2]
[385441813,1757851842909,-483.60747666,0.00021917,2]
[385441814,1757851842918,-480.0,0.00021917,2]
[385441815,1757851842928,-480.0,0.00021917,2]
[385441816,1757851842937,-2218.86,0.00021917,2]
[385441817,1757851842946,-480.94301996,0.00021917,2]
[385441818,1757851842955,-480.0,0.00021917,2]
[385441819,1757851842964,-480.0,0.00021917,2]
[385441820,1757851842973,-480.0,0.00021917,2]
[385441821,1757851842983,-896.26,0.00021917,2]
[385441822,1757851842992,-480.0,0.00021917,2]
[385441823,1757851843001,-480.0,0.00021917,2]
[385441824,1757851843010,-480.0,0.00021917,2]
[385441825,1757851843019,-2469.07,0.00021917,2]
[385441826,1757851843028,-491.5,0.00021917,2]
[385441827,1757851843037,-480.0,0.00021917,2]
[385441828,1757851843047,-1083.7,0.00021917,2]
[385441829,1757851843057,-480.0,0.00021917,2]
[385441830,1757851843068,-480.0,0.00021917,2]
[385441831,1757851843077,-488.56911275,0.00021917,2]
[385441832,1757851843086,-3965.06,0.00021917,2]
[385441833,1757851843095,-480.0,0.00021917,2]
[385441834,1757851843104,-482.23983581,0.00021917,2]
[385441835,1757851843113,-738.87,0.00021917,2]
[385441836,1757851843122,-168.0,0.0002194,2]
[385441837,1757851843132,-500.0,0.00021973,2]
[385441838,1757851843141,-500.0,0.00021973,2]
[385441839,1757851843151,-500.0,0.00021973,2]
[385441840,1757851843160,-296.4694376,0.00021973,2]
[385441841,1757851843169,-472.21422934,0.00021973,2]
[385441842,1757851843179,-500.0,0.00021973,2]
[385441843,1757851843188,-500.0,0.00021973,2]
[385441844,1757851843197,-500.0,0.00021973,2]
[385441845,1757851843206,-502.72568923,0.00021973,2]
[385441846,1757851843215,-500.0,0.00021973,2]
[385441847,1757851843225,-500.0,0.00021973,2]
[385441848,1757851843234,-500.0,0.00021973,2]
[385441849,1757851843243,-234.75,0.00021973,2]
[385441850,1757851843252,-271.85,0.00022,2]
[385441851,1757851843262,-2696.0,0.00022017,2]
[385441852,1757851843271,-634.0,0.00022017,2]
[385441853,1757851843280,-2156.0,0.00022017,2]
[385441854,1757851843290,-410.0,0.00022017,2]
[385441855,1757851843299,-197.52715663,0.00022091,2]
[385441856,1757851843308,-150.0,0.000221,2]
[385441857,1757851843318,-500.0,0.00022173,2]
[385441858,1757851843327,-500.0,0.00022173,2]
[385441859,1757851843342,-178.8136784,0.00022173,2]
[385441860,1757851843368,-642.5165997,0.00022173,2]
[385441861,1757851843390,-500.0,0.00022173,2]
[385441862,1757851843415,-173.89977686,0.00022173,2]
[385441863,1757851843424,-500.0,0.00022173,2]
[385441864,1757851843434,-500.0,0.00022173,2]
[385441865,1757851843443,-500.0,0.00022173,2]
[385441866,1757851843452,-500.0,0.00022173,2]
[385441867,1757851843462,-500.0,0.00022173,2]
[385441868,1757851843471,-500.54421837,0.00022173,2]
[385441869,1757851843480,-500.0,0.00022173,2]
[385441870,1757851843490,-500.0,0.00022173,2]
[385441871,1757851843500,-500.0,0.00022173,2]
[385441872,1757851843509,-500.0,0.00022173,2]
[385441873,1757851843519,-500.0,0.00022173,2]
[385441874,1757851843528,-500.0,0.00022173,2]
[385441875,1757851843537,-500.0,0.00022173,2]
[385441876,1757851843547,-500.0,0.00022173,2]
[385441877,1757851843556,-500.0,0.00022173,2]
[385441878,1757851843566,-500.0,0.00022173,2]
[385441879,1757851843575,-500.0,0.00022173,2]
[385441880,1757851843585,-500.0,0.00022173,2]
[385441881,1757851843594,-500.0,0.00022173,2]
[385441882,1757851843603,-500.0,0.00022173,2]
[385441883,1757851843612,-500.0,0.00022173,2]
[385441884,1757851843622,-500.0,0.00022173,2]
[385441885,1757851843632,-500.0,0.00022173,2]
[385441886,1757851843641,-500.0,0.00022173,2]
[385441887,1757851843651,-500.0,0.00022173,2]
[385441888,1757851843660,-522.3796169,0.00022191,3]
[385441889,1757851843669,-480.0,0.00022191,3]
[385441890,1757851843679,-480.0,0.00022191,3]
[385441891,1757851843689,-719.78,0.00022191,3]
[385441892,1757851843700,-480.0,0.00022191,3]
[385441893,1757851843710,-488.02918944,0.00022191,3]
[385441894,1757851843721,-934.23,0.00022191,3]
[385441895,1757851843731,-480.0,0.00022191,3]
[385441896,1757851843741,-480.0,0.00022191,3]
[385441897,1757851843752,-200.03261799,0.00022191,3]
[385441898,1757851843761,-480.0,0.00022191,3]
[385441899,1757851843770,-480.0,0.00022191,3]
[385441900,1757851843779,-480.0,0.00022191,3]
[385441901,1757851843789,-480.0,0.00022191,3]
[385441902,1757851843798,-480.0,0.00022191,3]
[385441903,1757851843807,-480.0,0.00022191,3]
[385441904,1757851843821,-480.0,0.00022191,3]
[385441905,1757851843831,-430.64252563,0.00022191,3]
[385441906,1757851843843,-480.0,0.00022191,3]
[385441907,1757851843852,-480.0,0.00022191,3]
[385441908,1757851843862,-506.52,0.00022191,3]
[385441909,1757851843872,-1085.2,0.00022191,3]
[385441910,1757851843881,-480.0,0.00022191,3]
[385441911,1757851843891,-480.0,0.00022191,3]
[385441912,1757851843900,-480.0,0.00022191,3]
[385441913,1757851843910,-480.0,0.00022191,3]
[385441914,1757851844044,-297.77655345,0.00022191,3]
[385441915,1757851844053,-480.0,0.00022191,3]
[385441916,1757851844063,-816.1,0.00022191,3]
[385441917,1757851844072,-1119.71,0.00022191,3]
[385441918,1757851844082,-480.0,0.00022191,3]
[385441919,1757851844091,-480.0,0.00022191,3]
[385441920,1757851844101,-480.0,0.00022191,3]
[385441921,1757851844111,-362.62069649,0.00022191,3]
[385441922,1757851844120,-352.45239227,0.00022191,3]
[385441923,1757851844130,-480.0,0.00022191,3]
[385441924,1757851844139,-480.0,0.00022191,3]
[385441925,1757851844149,-480.0,0.00022191,3]
[385441927,1757851844158,-2208.49,0.00022191,3]
[385441928,1757851844167,-480.0,0.00022191,3]
[385441930,1757851844176,-480.0,0.00022191,3]
[385441931,1757851844186,-480.0,0.00022191,3]
[385441932,1757851844196,-480.0,0.00022191,3]
[385441933,1757851844208,-1044.91,0.00022191,3]
[385441934,1757851844218,-502.19,0.00022191,3]
[385441935,1757851844227,-480.0,0.00022191,3]
[385441936,1757851844236,-1088.04,0.00022191,3]
[385441938,1757851844246,-480.0,0.00022191,3]
[385441940,1757851844255,-711.21,0.00022191,3]
[385441942,1757851844265,-834.75,0.00022191,3]
[385441944,1757851844275,-508.5,0.00022191,3]
[385441945,1757851844284,-480.0,0.00022191,3]
[385441946,1757851844293,-480.0,0.00022191,3]
[385441948,1757851844303,-480.0,0.00022191,3]
[385441949,1757851844312,-480.0,0.00022191,3]
[385441950,1757851844322,-480.0,0.00022191,3]
[385441951,1757851844332,-598.06,0.00022191,3]
[385441952,1757851844341,-480.0,0.00022191,3]
[385441953,1757851844351,-480.0,0.00022191,3]
[385441954,1757851844360,-494.38,0.00022191,3]
[385441955,1757851844370,-480.0,0.00022191,3]
[385441956,1757851844379,-480.0,0.00022191,3]
[385441957,1757851844389,-285.9416425,0.00022191,3]
[385441958,1757851844400,-480.0,0.00022191,3]
[385441959,1757851844410,-531.61,0.00022191,3]
[385441960,1757851844419,-480.0,0.00022191,3]
[385441961,1757851844429,-480.0,0.00022191,3]
[385441962,1757851844439,-983.67,0.00022191,3]
[385441963,1757851844448,-581.54305175,0.00022191,3]
[385441964,1757851844457,-480.0,0.00022191,3]
[385441965,1757851844467,-492.71,0.00022191,3]
[385441966,1757851844476,-480.0,0.00022191,3]
[385441967,1757851844486,-613.37,0.00022191,3]
[385441968,1757851844495,-943.73,0.00022191,3]
[385441969,1757851844504,-623.98,0.00022191,3]
[385441970,1757851844514,-480.0,0.00022191,3]
[385441971,1757851844523,-480.0,0.00022191,3]
[385441972,1757851844532,-480.0,0.00022191,3]
[385441973,1757851844542,-480.0,0.00022191,3]
[385441974,1757851844551,-480.0,0.00022191,3]
[385441975,1757851844560,-596.7120857,0.00022191,3]
[385441976,1757851844569,-271.18121365,0.00022191,3]
[385441977,1757851844579,-480.0,0.00022191,3]
[385441978,1757851844588,-480.0,0.00022191,3]
[385441979,1757851844598,-506.42554039,0.00022191,3]
[385441980,1757851844607,-480.0,0.00022191,3]
[385441981,1757851844617,-604.43,0.00022191,3]
[385441982,1757851844626,-170.79847766,0.00022191,3]
[385441983,1757851844636,-480.0,0.00022191,3]
[385441984,1757851844645,-1302.56,0.00022191,3]
[385441985,1757851844654,-1271.9,0.00022191,3]
[385441986,1757851844663,-928.58,0.00022191,3]
[385441987,1757851844673,-480.0,0.00022191,3]
[385441988,1757851844683,-480.0,0.00022191,3]
[385441989,1757851844692,-480.0,0.00022191,3]
[385441990,1757851844701,-523.04,0.00022191,3]
[385441991,1757851844710,-480.0,0.00022191,3]
[385441992,1757851844720,-480.0,0.00022191,3]
[385441993,1757851844730,-567.28,0.00022191,3]
[385441995,1757851844739,-526.66,0.00022191,3]
[385441997,1757851844748,-480.0,0.00022191,3]
[385441999,1757851844757,-480.0,0.00022191,3]
[385442000,1757851844767,-486.69,0.00022191,3]
[385442001,1757851844776,-1156.04,0.00022191,3]
[385442002,1757851844785,-480.0,0.00022191,3]
[385442003,1757851844794,-480.0,0.00022191,3]
[385442004,1757851844804,-488.90367269,0.00022191,3]
[385442006,1757851844815,-480.0,0.00022191,3]
[385442008,1757851844826,-749.07,0.00022191,3]
[385442010,1757851844835,-790.19,0.00022191,3]
[385442012,1757851844845,-480.0,0.00022191,3]
[385442014,1757851844854,-480.0,0.00022191,3]
[385442016,1757851844866,-635.81,0.00022191,3]
[385442018,1757851844875,-480.0,0.00022191,3]
[385442020,1757851844885,-480.0,0.00022191,3]
[385442022,1757851844896,-480.0,0.00022191,3]
[385442024,1757851844905,-550.1,0.00022191,3]
[385442025,1757851844915,-480.0,0.00022191,3]
[385442026,1757851844925,-480.0,0.00022191,3]
[385442027,1757851844935,-662.11,0.00022191,3]
[385442028,1757851844945,-480.0,0.00022191,3]
[385442029,1757851844955,-480.0,0.00022191,3]
[385442030,1757851844964,-480.0,0.00022191,3]
[385442031,1757851844973,-788.11,0.00022191,3]
[385442032,1757851844983,-886.65,0.00022191,3]
[385442033,1757851844992,-626.24,0.00022191,3]
[385442034,1757851845002,-480.0,0.00022191,3]
[385442035,1757851845011,-1479.95,0.00022191,3]
[385442036,1757851845021,-480.0,0.00022191,3]
[385442038,1757851845030,-1081.02,0.00022191,3]
[385442040,1757851845040,-519.06,0.00022191,3]
[385442041,1757851845049,-480.0,0.00022191,3]
[385442042,1757851845059,-1000.11,0.00022191,3]
[385442043,1757851845069,-970.87,0.00022191,3]
[385442044,1757851845078,-480.0,0.00022191,3]
[385442045,1757851845087,-480.0,0.00022191,3]
[385442046,1757851845096,-195.44348328,0.00022191,3]
[385442048,1757851845106,-480.0,0.00022191,3]
[385442050,1757851845115,-480.0,0.00022191,3]
[385442051,1757851845124,-905.01,0.00022191,3]
[385442052,1757851845133,-1260.47,0.00022191,3]
[385442054,1757851845143,-480.0,0.00022191,3]
[385442056,1757851845152,-2705.95,0.00022191,3]
[385442058,1757851845161,-5580.09,0.00022191,3]
[385442059,1757851845170,-1023.04,0.00022191,3]
[385442060,1757851845181,-480.0,0.00022191,3]
[385442061,1757851845190,-505.91065217,0.00022191,3]
[385442062,1757851845199,-618.30008015,0.00022191,3]
[385442063,1757851845209,-480.0,0.00022191,3]
[385442064,1757851845218,-509.96,0.00022191,3]
[385442065,1757851845228,-480.0,0.00022191,3]
[385442066,1757851845237,-480.0,0.00022191,3]
[385442067,1757851845246,-555.34,0.00022191,3]
[385442068,1757851845256,-480.0,0.00022191,3]
[385442069,1757851845265,-480.0,0.00022191,3]
[385442070,1757851845275,-480.0,0.00022191,3]
[385442071,1757851845284,-1405.4,0.00022191,3]
[385442072,1757851845293,-593.73,0.00022191,3]
[385442073,1757851845303,-480.0,0.00022191,3]
[385442074,1757851845312,-3781.54,0.00022191,3]
[385442075,1757851845322,-480.0,0.00022191,3]
[385442076,1757851845331,-728.24,0.00022191,3]
[385442077,1757851845341,-483.17486433,0.00022191,3]
[385442078,1757851845351,-549.78,0.00022191,3]
[385442079,1757851845360,-480.0,0.00022191,3]
[385442080,1757851845370,-480.0,0.00022191,3]
[385442081,1757851845379,-357.87,0.00022191,2]
[385442082,1757851845389,-1212.62,0.00022191,3]
[385442083,1757851845398,-753.95,0.00022191,3]
[385442084,1757851845408,-1132.59,0.00022191,3]
[385442085,1757851845417,-970.76,0.00022191,3]
[385442086,1757851845428,-1392.4,0.00022191,3]
[385442087,1757851845437,-480.0,0.00022191,3]
[385442088,1757851845448,-834.67,0.00022191,3]
[385442089,1757851845458,-626.22,0.00022191,3]
[385442090,1757851845467,-778.67,0.00022191,3]
[385442091,1757851845478,-480.0,0.00022191,3]
[385442092,1757851845487,-503.68,0.00022191,3]
[385442093,1757851845496,-2111.35,0.00022191,3]
[385442094,1757851845506,-935.78,0.00022191,3]
[385442095,1757851845516,-766.57,0.00022191,3]
[385442096,1757851845526,-634.66,0.00022191,3]
[385442097,1757851845535,-25678.9,0.00022191,3]
[385442098,1757851845545,-480.0,0.00022191,3]
[385442099,1757851845555,-480.0,0.00022191,3]
[385442100,1757851845566,-6977.48,0.00022191,3]
[385442101,1757851845575,-480.0,0.00022191,3]
[385442102,1757851845584,-480.0,0.00022191,3]
[385442103,1757851845594,-480.0,0.00022191,3]
[385442104,1757851845603,-1433.83,0.00022191,3]
[385442105,1757851845612,-537.75,0.00022191,3]
[385442106,1757851845622,-480.0,0.00022191,3]
[385442107,1757851845631,-3265.71,0.00022191,3]
[385442108,1757851845642,-1597.56,0.00022191,3]
[385442109,1757851845652,-897.32,0.00022191,3]
[385442110,1757851845661,-488.49358104,0.00022191,3]
[385442111,1757851845671,-1106.6,0.00022191,3]
[385442112,1757851845681,-480.0,0.00022191,3]
[385442113,1757851845690,-635.37,0.00022191,3]
[385442114,1757851845699,-480.0,0.00022191,3]
[385442115,1757851845709,-1081.55,0.00022191,3]
[385442116,1757851845720,-1513.06,0.00022191,3]
[385442117,1757851845729,-482.7268594,0.00022191,3]